fUSD/lending_fUSD_20250417
["ID","MTS","AMOUNT","RATE_DAILY","PERIOD"]
[358244478,1744873847364,-576.1,0.00049315,120]
[358244479,1744873847376,-500.0,0.00049315,120]
[358244480,1744873847388,-500.0,0.00049315,120]
[358244481,1744873847400,-503.15,0.00049315,120]
[358244482,1744873847413,-151.0,0.00049315,14]
[358244483,1744873847424,-151.0,0.00049315,14]
[358244484,1744873847435,-500.0,0.00049315,120]
[358244485,1744873847446,-500.0,0.00049315,120]
[358244486,1744873847459,-555.08,0.00049315,120]
[358244487,1744873847470,-504.78528371,0.00049315,120]
[358244488,1744873847481,-433.25360374,0.00049315,120]
[358244489,1744873847533,-66.74639626,0.00049315,120]
[358244490,1744873847544,-500.0,0.00049315,120]
[358244491,1744873847555,-500.0,0.00049315,120]
[358244492,1744873847567,-1886.44,0.00049315,120]
[358244493,1744873847579,-151.0,0.00049315,14]
[358244494,1744873847590,-618.95,0.00049315,120]
[358244495,1744873847602,-151.0,0.00049315,14]
[358244496,1744873847613,-155.225431,0.00049315,14]
[358244497,1744873847624,-500.0,0.00049315,120]
[358244498,1744873847634,-500.0,0.00049315,120]
[358244499,1744873847645,-500.0,0.00049315,120]
[358244500,1744873847657,-500.0,0.00049315,120]
[358244501,1744873847668,-500.0,0.00049315,120]
[358244502,1744873847679,-503.32108041,0.00049315,120]
[358244503,1744873847690,-297.17772037,0.00049315,120]
[358244504,1744873847701,-500.0,0.00049315,120]
[358244505,1744873847712,-1858.44206,0.00049315,14]
[358244506,1744873847724,-500.0,0.00049315,120]
[358244507,1744873847735,-1858.44206,0.00049315,14]
[358244508,1744873847746,-1858.44206,0.00049315,14]
[358244509,1744873847758,-1858.44206,0.00049315,14]
[358244510,1744873847770,-514.62400742,0.00049315,120]
[358244511,1744873847782,-1496.95,0.00049315,120]
[358244512,1744873847793,-1645.98,0.00049315,120]
[358244513,1744873847804,-500.0,0.00049315,120]
[358244514,1744873847814,-1341.73,0.00049315,120]
[358244515,1744873847824,-500.0,0.00049315,120]
[358244516,1744873847835,-500.0,0.00049315,120]
[358244517,1744873847845,-1032.89,0.00049315,120]
[358244518,1744873847856,-623.13809268,0.00049315,120]
[358244519,1744873847867,-3500.0,0.00049315,10]
[358244520,1744873847877,-1852.49,0.00049315,120]
[358244521,1744873847888,-500.0,0.00049315,120]
[358244522,1744873847898,-1503.01,0.00049315,120]
[358244523,1744873847907,-500.0,0.00049315,120]
[358244524,1744873847918,-8604.94,0.00049315,120]
[358244525,1744873847928,-658.27,0.00049315,120]
[358244526,1744873847940,-151.0,0.00049315,14]
[358244527,1744873847950,-500.0,0.00049315,120]
[358244528,1744873847962,-151.0,0.00049315,14]
[358244529,1744873847973,-500.0,0.00049315,120]
[358244530,1744873847984,-194.207493,0.00049315,14]
[358244531,1744873847996,-160.60454,0.00049315,14]
[358244532,1744873848007,-151.92553959,0.00049315,120]
[358244533,1744873848018,-2417.84,0.00049315,120]
[358244534,1744873848030,-527.11,0.00049315,120]
[358244535,1744873848042,-500.0,0.00049315,120]
[358244536,1744873848053,-500.0,0.00049315,120]
[358244537,1744873848064,-518.5418252,0.00049315,120]
[358244538,1744873848076,-500.0,0.00049315,120]
[358244539,1744873848088,-698.89,0.00049315,120]
[358244540,1744873848099,-160.87267947,0.00049315,120]
[358244541,1744873848110,-500.0,0.00049315,120]
[358244542,1744873848121,-500.0,0.00049315,120]
[358244543,1744873848132,-500.0,0.00049315,120]
[358244544,1744873848143,-1236.62,0.00049315,120]
[358244545,1744873848154,-1611.27,0.00049315,120]
[358244546,1744873848165,-500.91895059,0.00049315,120]
[358244547,1744873848175,-500.0,0.00049315,120]
[358244548,1744873848187,-500.0,0.00049315,120]
[358244549,1744873848199,-500.0,0.00049315,120]
[358244550,1744873848210,-500.0,0.00049315,120]
[358244551,1744873848222,-500.0,0.00049315,120]
[358244552,1744873848234,-1687.67,0.00049315,120]
[358244553,1744873848244,-15.74522972,0.00049315,14]
[358244554,1744873848281,-13.28705752,0.00049315,14]
[358244555,1744873848292,-121.96771276,0.00049315,14]
[358244556,1744873848302,-151.0,0.00049315,14]
[358244557,1744873848312,-500.0,0.00049315,120]
[358244558,1744873848322,-85.23296137,0.00049315,120]
[358244559,1744873848338,-414.76703863,0.00049315,120]
[358244560,1744873848347,-2.74816138,0.00049315,14]
[358244561,1744873848359,-148.25183862,0.00049315,14]
[358244562,1744873848369,-151.0,0.00049315,14]
[358244563,1744873848378,-31.81816863,0.00049315,120]
[358244564,1744873848390,-468.18183137,0.00049315,120]
[358244565,1744873848401,-7.03682244,0.00049315,120]
[358244566,1744873848470,-151.0,0.00048432,15]
[358244567,1744873848480,-492.96317756,0.00049315,120]
[358244568,1744873848491,-306.39291264,0.00049315,120]
[358244569,1744873848967,-193.60708736,0.00049315,120]
[358244570,1744873848989,-522.90241621,0.00049315,120]
[358244571,1744873849023,-480.64758379,0.00049315,120]
[358244572,1744873849034,-19.35241621,0.00049315,120]
[358244573,1744873849047,-480.64758379,0.00049315,120]
[358244574,1744873849057,-500.0,0.00049315,120]
[358244575,1744873849067,-517.56025063,0.00049315,120]
[358244576,1744873849079,-500.0,0.00049315,120]
[358244577,1744873849088,-500.0,0.00049315,120]
[358244578,1744873849098,-600.61,0.00049315,120]
[358244579,1744873849108,-500.0,0.00049315,120]
[358244580,1744873849118,-867.68,0.00049315,120]
[358244581,1744873849128,-500.0,0.00049315,120]
[358244582,1744873849139,-1679.15,0.00049315,120]
[358244583,1744873849148,-2709.88,0.00049315,120]
[358244584,1744873849158,-500.0,0.00049315,120]
[358244585,1744873849167,-1075.47,0.00049315,120]
[358244586,1744873849177,-95.45528565,0.00049315,120]
[358244587,1744873849189,-348.95445286,0.00049315,120]
[358244588,1744873849200,-373.89367998,0.00049315,120]
[358244589,1744873849211,-55.28658151,0.00049315,120]
[358244590,1744873849221,-242.04281848,0.00049315,120]
[358244591,1744873849237,-792.61696122,0.00049315,120]
[358244592,1744873849248,-1150.8702203,0.00049315,120]
[358244593,1744873849257,-500.0,0.00049315,120]
[358244594,1744873849267,-151.0,0.00049315,14]
[358244595,1744873849276,-151.0,0.00049315,14]
[358244596,1744873849286,-1475.81,0.00049315,120]
[358244597,1744873849296,-500.0,0.00049315,120]
[358244598,1744873849305,-667.25,0.00049315,120]
[358244599,1744873849315,-500.0,0.00049315,120]
[358244600,1744873849325,-500.0,0.00049315,120]
[358244601,1744873849339,-500.0,0.00049315,120]
[358244602,1744873849348,-1628.32,0.00049315,120]
[358244603,1744873849357,-500.0,0.00049315,120]
[358244604,1744873849367,-1968.68,0.00049315,120]
[358244605,1744873849377,-151.0,0.00049315,14]
[358244606,1744873849387,-151.0,0.00049315,14]
[358244607,1744873849397,-500.0,0.00049315,120]
[358244608,1744873849408,-151.0,0.00049315,14]
[358244609,1744873849418,-500.0,0.00049315,120]
[358244610,1744873849429,-500.0,0.00049315,120]
[358244611,1744873849439,-1228.2,0.00049315,120]
[358244612,1744873849448,-500.0,0.00049315,120]
[358244613,1744873849458,-500.0,0.00049315,120]
[358244614,1744873849469,-1482.53,0.00049315,120]
[358244615,1744873849479,-151.0,0.00049315,14]
[358244616,1744873849488,-151.0,0.00049315,14]
[358244617,1744873849498,-151.0,0.00049315,14]
[358244618,1744873849508,-500.0,0.00049315,120]
[358244619,1744873849517,-500.0,0.00049315,120]
[358244620,1744873849527,-513.41039682,0.00049315,120]
[358244621,1744873849536,-224.43503646,0.00049315,120]
[358244622,1744873849546,-1835.22,0.00049315,120]
[358244623,1744873849555,-562.61,0.00049315,30]
[358244624,1744873849564,-500.0,0.00049315,120]
[358244625,1744873849575,-520.59,0.00049315,120]
[358244626,1744873849585,-500.0,0.00049315,120]
[358244627,1744873849594,-500.0,0.00049315,120]
[358244628,1744873849605,-500.0,0.00049315,120]
[358244629,1744873849615,-500.0,0.00049315,120]
[358244630,1744873849624,-690.47,0.00049315,120]
[358244631,1744873849634,-500.0,0.00049315,120]
[358244632,1744873849644,-320.56232386,0.00049315,120]
[358244633,1744873849654,-500.0,0.00049315,120]
[358244634,1744873849663,-519.86739899,0.00049315,120]
[358244635,1744873849673,-500.0,0.00049315,120]
[358244636,1744873849682,-500.0,0.00049315,120]
[358244637,1744873849692,-500.0,0.00049315,120]
[358244638,1744873849702,-500.0,0.00049315,120]
[358244639,1744873849711,-1077.14,0.00049315,120]
[358244640,1744873849721,-500.0,0.00049315,120]
[358244641,1744873849732,-2631.06,0.00049315,120]
[358244642,1744873849742,-500.0,0.00049315,120]
[358244643,1744873849752,-500.0,0.00049315,120]
[358244644,1744873849761,-795.56,0.00049315,120]
[358244645,1744873849771,-500.25394925,0.00049315,30]
[358244646,1744873849780,-500.0,0.00049315,120]
[358244647,1744873849790,-500.0,0.00049315,120]
[358244648,1744873849799,-500.0,0.00049315,120]
[358244649,1744873849809,-500.0,0.00049315,120]
[358244650,1744873849818,-500.0,0.00049315,120]
[358244651,1744873849828,-151.0,0.00049315,14]
[358244652,1744873849838,-1158.47,0.00049315,120]
[358244653,1744873849847,-1182.82,0.00049315,120]
[358244654,1744873849856,-500.0,0.00049315,120]
[358244655,1744873849866,-500.0,0.00049315,120]
[358244656,1744873849875,-675.83,0.00049315,120]
[358244657,1744873849884,-151.0,0.00049315,14]
[358244658,1744873849894,-151.0,0.00049315,14]
[358244659,1744873849903,-500.0,0.00049315,120]
[358244660,1744873849913,-151.0,0.00049315,14]
[358244661,1744873849922,-500.0,0.00049315,120]
[358244662,1744873849931,-151.0,0.00049315,14]
[358244663,1744873849940,-500.0,0.00049315,120]
[358244664,1744873849948,-151.0,0.00049315,14]
[358244665,1744873849956,-151.0,0.00049315,14]
[358244666,1744873849964,-2019.9,0.00049315,120]
[358244667,1744873849973,-705.62,0.00049315,120]
[358244668,1744873849982,-528.56,0.00049315,120]
[358244669,1744873849992,-524.00441962,0.00049315,120]
[358244670,1744873850001,-500.0,0.00049315,120]
[358244671,1744873850011,-500.0,0.00049315,120]
[358244672,1744873850020,-500.0,0.00049315,120]
[358244673,1744873850030,-600.27,0.00049315,120]
[358244674,1744873850040,-500.0,0.00049315,120]
[358244675,1744873850049,-500.0,0.00049315,120]
[358244676,1744873850059,-500.0,0.00049315,120]
[358244677,1744873850067,-500.0,0.00049315,120]
[358244678,1744873850077,-500.0,0.00049315,120]
[358244679,1744873850086,-500.0,0.00049315,120]
[358244680,1744873850096,-500.0,0.00049315,120]
[358244681,1744873850105,-500.0,0.00049315,120]
[358244682,1744873850114,-859.7,0.00049315,120]
[358244683,1744873850124,-500.0,0.00049315,120]
[358244684,1744873850134,-975.46,0.00049315,120]
[358244685,1744873850143,-500.0,0.00049315,120]
[358244686,1744873850153,-527.83468522,0.00049315,120]
[358244687,1744873850171,-122.78531478,0.00049315,120]
[358244688,1744873850181,-500.0,0.00049315,120]
[358244689,1744873850190,-912.56,0.00049315,120]
[358244690,1744873850199,-755.67,0.00049315,2]
[358244691,1744873850209,-151.0,0.00049315,14]
[358244692,1744873850218,-151.0,0.00049315,14]
[358244693,1744873850228,-277.591978,0.00049315,14]
[358244694,1744873850237,-500.0,0.00049315,120]
[358244695,1744873850247,-667.81,0.00049315,120]
[358244696,1744873850256,-500.0,0.00049315,120]
[358244697,1744873850265,-500.0,0.00049315,120]
[358244698,1744873850275,-471.73695392,0.00049315,120]
[358244699,1744873947158,-151.07,0.00024932,2]
[358244703,1744874512900,250.0,0.00017,2]
[358244706,1744874819957,-210.238731,0.00024,5]
[358244707,1744874825424,-847.22145084,0.00024,5]
[358244708,1744874825452,-151.07,0.00033551,2]
[358244709,1744874825480,-250.0,0.00036776,2]
[358244710,1744874825512,-39.45175701,0.00036906,2]
[358244711,1744874851097,-210.54824299,0.00036906,2]
[358244712,1744874851123,-250.0,0.00039729,2]
[358244713,1744874851147,-286.71495043,0.0004,30]
[358244714,1744874919647,499.999999,0.000151,2]
[358244719,1744874970095,-564.53449884,0.0004,30]
[358244726,1744875031920,-307.74011583,0.0004,30]
[358244727,1744875031932,-174.25896561,0.00040888,7]
[358244730,1744875031962,-317.13163439,0.00040888,7]
[358244732,1744875031972,-150.0,0.00041,14]
[358244734,1744875031982,-230.87,0.00042026,14]
[358244735,1744875031991,-26.67836561,0.00042171,2]
[358244736,1744875032003,-124.39163439,0.00042171,2]
[358244737,1744875032013,-150.0,0.00043151,90]
[358244738,1744875032023,-242.2,0.00043306,2]
[358244739,1744875032032,-97.43731104,0.00043456,2]
[358244740,1744875032044,-513.10494547,0.00043456,2]
[358244741,1744875032067,-2507.43057068,0.00043456,2]
[358244742,1744875032078,-165.17433363,0.00043456,2]
[358244743,1744875032087,-550.0,0.00043556,5]
[358244744,1744875032096,-550.0,0.00043556,5]
[358244745,1744875032105,-6252.71301307,0.00043557,2]
[358244746,1744875032116,-18225.29774993,0.00043557,2]
[358244747,1744875032127,-5531.30795576,0.00043558,15]
[358244748,1744875032136,-307.59,0.00043558,30]
[358244749,1744875032145,-394.0,0.00043566,4]
[358244750,1744875032155,-98915.26356924,0.00043567,2]
[358244751,1744875032167,-1276.93341928,0.00043567,2]
[358244752,1744875032179,-493.5826747,0.00043567,2]
[358244753,1744875032199,-4814.31151359,0.00043567,2]
[358244754,1744875032211,-6388.25320085,0.00043567,2]
[358244755,1744875032223,-396.3812676,0.00043567,2]
[358244756,1744875032235,-60332.56948255,0.00043567,2]
[358244757,1744875032245,-150.32,0.00043658,2]
[358244758,1744875032254,-1565.41,0.00043835,120]
[358244759,1744875032263,-209.0,0.0004387,30]
[358244760,1744875032273,-4422.5156,0.00043888,30]
[358244761,1744875032282,-1272.62263086,0.00044102,16]
[358244763,1744875032292,-2177.44588911,0.00044102,15]
[358244765,1744875032301,-170.42498471,0.00044102,28]
[358244767,1744875032310,-200.0,0.00044158,7]
[358244769,1744875032319,-276.27,0.00044185,120]
[358244771,1744875032328,-401.0,0.000442,5]
[358244773,1744875032338,-1007.984,0.000442,70]
[358244775,1744875032351,-300.0,0.00044201,30]
[358244777,1744875032361,-105635.37541072,0.00044202,30]
[358244779,1744875032372,-356830.521,0.00044202,30]
[358244781,1744875032384,-35000.0,0.00044202,30]
[358244784,1744875032396,-1906.2977067,0.00044202,30]
[358244786,1744875032406,-1523.2782894,0.00044202,30]
[358244788,1744875032416,-846.36938965,0.00044202,30]
[358244790,1744875032425,-506.94451099,0.00044273,10]
[358244792,1744875032435,-500.0,0.00044273,10]
[358244794,1744875032444,-5531.30795567,0.00044308,15]
[358244796,1744875032453,-11437.61110742,0.0004448,2]
[358244797,1744875032462,-2177.44588908,0.00044792,15]
[358244799,1744875032472,-178.31,0.00044946,2]
[358244801,1744875032481,-151.0,0.00045,120]
[358244803,1744875032491,-3000.0,0.00045,30]
[358244806,1744875032500,-5531.30795567,0.00045058,15]
[358244808,1744875032509,-1136.80832849,0.00045155,2]
[358244810,1744875032519,-549.42,0.00045156,2]
[358244812,1744875032528,-2177.44588908,0.00045482,15]
[358244813,1744875032537,-209.0,0.0004574,30]
[358244815,1744875032546,-5531.30795567,0.00045809,15]
[358244817,1744875032556,-2177.44588908,0.00046171,15]
[358244819,1744875032565,-770.0,0.00046288,5]
[358244821,1744875032575,-5531.30795567,0.00046559,15]
[358244824,1744875032585,-2177.44588908,0.00046861,15]
[358244825,1744875032594,-240.55,0.00047074,2]
[358244828,1744875032604,-250.0,0.00047118,120]
[358244829,1744875032613,-5531.30795567,0.00047309,15]
[358244832,1744875032623,-549.42,0.0004742,2]
[358244833,1744875032633,-4719.0,0.000475,120]
[358244835,1744875032643,-704.45,0.00047513,2]
[358244838,1744875032656,-2177.44588908,0.00047551,15]
[358244840,1744875032666,-20000.0,0.00047563,5]
[358244842,1744875032676,-209.0,0.0004761,30]
[358244844,1744875032686,-721.56935661,0.00048,120]
[358244846,1744875032696,-1074.1054852,0.00048059,15]
[358244848,1744875032712,-342.80561716,0.00048059,15]
[358244855,1744875032767,-184.55737686,0.00043566,7]
[358244857,1744875032778,-426.49262314,0.00046575,120]
[358244984,1744875038194,-73.50737686,0.00046575,120]
[358244985,1744875038202,-500.0,0.00046575,120]
[358244986,1744875038211,-500.0,0.00046575,120]
[358244987,1744875038220,-358.44334908,0.00046575,120]
[358244988,1744875038231,-141.55665092,0.00046575,120]
[358244989,1744875038241,-500.0,0.00046575,120]
[358244990,1744875038250,-262.64323468,0.00046575,120]
[358244991,1744875038261,-237.35676532,0.00046575,120]
[358244992,1744875038270,-500.0,0.00046575,120]
[358244993,1744875038279,-155.05748997,0.00046575,120]
[358244994,1744875038291,-344.94251003,0.00046575,120]
[358244995,1744875038300,-476.34219329,0.00046575,120]
[358244996,1744875038310,-4114.39685331,0.00048059,15]
[358244997,1744875038319,-539.5,0.00048219,60]
[358244998,1744875038329,-2177.44588908,0.00048241,15]
[358244999,1744875038338,-41.27255429,0.00048355,2]
[358245000,1744875038361,-23858.72744571,0.00048355,2]
[358245001,1744875038370,-1000.0,0.00048372,2]
[358245002,1744875038379,-862.65499829,0.0004849,4]
[358245003,1744875038391,-6346.80758099,0.0004849,4]
[358245004,1744875038402,-5220.56850122,0.0004849,4]
[358245005,1744875038412,-2000.0,0.000485,2]
[358245006,1744875038421,-200.0,0.00048573,120]
[358245007,1744875038430,-1228.98,0.00048578,30]
[358245008,1744875038440,-337.2726163,0.0004866,4]
[358245009,1744875038449,-5531.30795567,0.0004881,15]
[358245010,1744875038458,-2177.44588908,0.0004893,15]
[358245011,1744875038468,-37290.0932415,0.0004899,4]
[358245012,1744875038477,-516.21389677,0.00048999,120]
[358245013,1744875038487,-3000.0,0.00049,120]
[358245014,1744875038496,-87111.00140074,0.00049,2]
[358245015,1744875038506,-276.27,0.00049075,120]
[358245016,1744875038515,-202.07984555,0.00049179,14]
[358245017,1744875038524,-6109.97000099,0.0004918,120]
[358245019,1744875038534,-12430.0310805,0.0004918,4]
[358245020,1744875038544,-18003.35672493,0.0004919,120]
[358245021,1744875038553,-1077.0,0.00049191,5]
[358245022,1744875038562,-12147.07817618,0.000492,120]
[358245023,1744875038572,-12430.0310805,0.00049205,4]
[358245024,1744875038581,-504.41773669,0.00049215,25]
[358245025,1744875038591,-760.5672,0.00049215,10]
[358245026,1744875038601,-209.18966454,0.00049285,7]
[358245027,1744875038611,-62150.1554025,0.00049294,4]
[358245028,1744875038620,-174020.435127,0.00049295,4]
[358245029,1744875038629,-3173.83581501,0.00049295,4]
[358245030,1744875038639,-159.541663,0.00049295,14]
[358245031,1744875038648,-157.443609,0.00049295,14]
[358245032,1744875038659,-151.0,0.00049295,14]
[358245033,1744875038668,-153.062666,0.00049295,14]
[358245034,1744875038678,-2267.02558215,0.00049295,4]
[358245035,1744875038688,-150.0000004,0.000493,120]
[358245036,1744875038699,-5000.0,0.000493,30]
[358245037,1744875038711,-5000.0,0.000493,7]
[358245038,1744875038721,-200.0,0.000493,2]
[358245039,1744875038730,-835.17995668,0.000493,21]
[358245040,1744875038741,-151.0,0.00049304,14]
[358245041,1744875038751,-151.0,0.00049304,14]
[358245042,1744875038761,-151.0,0.00049304,14]
[358245043,1744875038771,-714.377036,0.00049304,14]
[358245044,1744875038781,-714.377036,0.00049304,14]
[358245045,1744875038792,-162.802278,0.00049304,14]
[358245046,1744875038801,-316.082468,0.00049304,14]
[358245047,1744875038810,-151.0,0.00049304,14]
[358245048,1744875038819,-316.082468,0.00049304,14]
[358245049,1744875038828,-151.0,0.00049304,14]
[358245050,1744875038838,-151.0,0.00049304,14]
[358245051,1744875038848,-151.0,0.00049304,14]
[358245052,1744875038857,-151.0,0.00049304,14]
[358245053,1744875038867,-151.0,0.00049304,14]
[358245054,1744875038876,-219.519273,0.00049304,14]
[358245055,1744875038885,-219.519273,0.00049304,14]
[358245056,1744875038895,-151.0,0.00049304,14]
[358245057,1744875038905,-151.0,0.00049304,14]
[358245058,1744875038915,-151.0,0.00049304,14]
[358245059,1744875038924,-151.0,0.00049304,14]
[358245060,1744875038946,-151.0,0.00049304,14]
[358245061,1744875038957,-151.0,0.00049304,14]
[358245062,1744875038968,-151.0,0.00049304,14]
[358245063,1744875038979,-151.0,0.00049304,14]
[358245064,1744875038988,-151.0,0.00049304,14]
[358245065,1744875038999,-151.0,0.00049304,14]
[358245066,1744875039008,-151.0,0.00049304,14]
[358245067,1744875039019,-151.0,0.00049304,14]
[358245068,1744875039028,-3175.569905,0.00049304,14]
[358245069,1744875039038,-3175.569905,0.00049304,14]
[358245070,1744875039048,-151.0,0.00049304,14]
[358245071,1744875039058,-157.579622,0.00049304,14]
[358245072,1744875039068,-151.0,0.00049304,14]
[358245073,1744875039079,-157.579622,0.00049304,14]
[358245074,1744875039089,-182.809976,0.00049304,14]
[358245075,1744875039099,-182.809976,0.00049304,14]
[358245076,1744875039111,-1486.753648,0.00049304,14]
[358245077,1744875039122,-151.0,0.00049305,14]
[358245078,1744875039133,-151.0,0.00049305,14]
[358245079,1744875039144,-151.0,0.00049305,14]
[358245080,1744875039155,-151.0,0.00049305,14]
[358245081,1744875039166,-151.0,0.00049305,14]
[358245082,1744875039176,-714.377036,0.00049305,14]
[358245083,1744875039186,-151.0,0.00049305,14]
[358245084,1744875039196,-714.377036,0.00049305,14]
[358245085,1744875039206,-714.377036,0.00049305,14]
[358245086,1744875039216,-714.377036,0.00049305,14]
[358245087,1744875039226,-316.082468,0.00049305,14]
[358245088,1744875039236,-316.082468,0.00049305,14]
[358245089,1744875039246,-151.0,0.00049305,14]
[358245090,1744875039256,-151.0,0.00049305,14]
[358245091,1744875039265,-316.082468,0.00049305,14]
[358245092,1744875039275,-316.082468,0.00049305,14]
[358245093,1744875039284,-151.0,0.00049305,14]
[358245094,1744875039294,-151.0,0.00049305,14]
[358245095,1744875039304,-151.0,0.00049305,14]
[358245096,1744875039313,-169.4081,0.00049305,14]
[358245097,1744875039323,-151.0,0.00049305,14]
[358245098,1744875039333,-151.0,0.00049305,14]
[358245099,1744875039342,-151.0,0.00049305,14]
[358245100,1744875039351,-151.0,0.00049305,14]
[358245101,1744875039360,-151.0,0.00049305,14]
[358245102,1744875039370,-151.0,0.00049305,14]
[358245103,1744875039379,-219.519273,0.00049305,14]
[358245104,1744875039389,-219.519273,0.00049305,14]
[358245105,1744875039399,-219.519273,0.00049305,14]
[358245106,1744875039408,-219.519273,0.00049305,14]
[358245107,1744875039418,-151.0,0.00049305,14]
[358245108,1744875039428,-151.0,0.00049305,14]
[358245109,1744875039437,-188.274816,0.00049305,14]
[358245110,1744875039447,-151.0,0.00049305,14]
[358245111,1744875039456,-151.0,0.00049305,14]
[358245112,1744875039466,-151.0,0.00049305,14]
[358245113,1744875039476,-151.0,0.00049305,14]
[358245114,1744875039487,-151.0,0.00049305,14]
[358245115,1744875039496,-151.0,0.00049305,14]
[358245116,1744875039506,-151.0,0.00049305,14]
[358245117,1744875039515,-233.826331,0.00049305,14]
[358245118,1744875039533,-151.0,0.00049305,14]
[358245119,1744875039546,-151.0,0.00049305,14]
[358245120,1744875039562,-151.0,0.00049305,14]
[358245121,1744875039576,-151.0,0.00049305,14]
[358245122,1744875039590,-151.0,0.00049305,14]
[358245123,1744875039602,-163.364897,0.00049305,14]
[358245124,1744875039613,-235.487167,0.00049305,14]
[358245125,1744875039628,-3175.569905,0.00049305,14]
[358245126,1744875039642,-3175.569905,0.00049305,14]
[358245127,1744875039655,-3175.569905,0.00049305,14]
[358245128,1744875039668,-3175.569905,0.00049305,14]
[358245129,1744875039681,-239.3183,0.00049305,14]
[358245130,1744875039696,-157.579622,0.00049305,14]
[358245131,1744875039712,-157.579622,0.00049305,14]
[358245132,1744875039726,-151.0,0.00049305,14]
[358245133,1744875039740,-151.0,0.00049305,14]
[358245134,1744875039751,-157.579622,0.00049305,14]
[358245135,1744875039764,-157.579622,0.00049305,14]
[358245136,1744875039780,-182.809976,0.00049305,14]
[358245137,1744875039792,-182.809976,0.00049305,14]
[358245138,1744875039805,-182.809976,0.00049305,14]
[358245139,1744875039818,-182.809976,0.00049305,14]
[358245140,1744875039830,-1486.753648,0.00049305,14]
[358245141,1744875039843,-1486.753648,0.00049305,14]
[358245142,1744875039856,-312.94997787,0.00049314,30]
[358245143,1744875039869,-20721.95784916,0.00049315,2]
[358245149,1744875040350,-1740.80979722,0.00049314,120]
[358245150,1744875040362,-4287.36,0.00049314,120]
[358245151,1744875040375,-797.6518777,0.00049314,120]
[358245152,1744875040390,-5371.0,0.00049314,120]
[358245153,1744875040406,-8055.61711358,0.00049314,120]
[358245154,1744875040650,-1486.753648,0.00049304,14]
[358245155,1744875040662,-11022.57160618,0.00049314,120]
[358245156,1744875040677,-8542.713982,0.00049314,120]
[358245157,1744875040691,-3821.66175709,0.00049314,120]
[358245158,1744875040709,-159714.29998321,0.00049314,120]
[358245159,1744875040720,-278126.74265369,0.00049315,2]
[358245162,1744875042976,-1486.753648,0.00049305,14]
[358245164,1744875042987,-812.52668741,0.00049305,14]
[358245165,1744875043101,-674.22696059,0.00049305,14]
[358245166,1744875043113,-3435.93710191,0.00049315,2]
[358245169,1744875044699,-182.195929,0.00032877,30]
[358245187,1744875507693,-160.57,0.00024932,2]
[358245188,1744875507734,-93.96124765,0.00032877,30]
[358245195,1744875667719,-7.78282335,0.00032877,30]
[358245196,1744875667761,-182.39421968,0.00033,5]
[358245201,1744875959078,-200.0,0.00024732,2]
[358245202,1744875959120,-100.0,0.00024733,2]
[358245203,1744876037361,-100.0,0.00024733,2]
[358245204,1744876037383,-200.0,0.00024733,2]
[358245205,1744876037405,-172.65386505,0.00032303,2]
[358245206,1744876038257,-190.1771,0.00032303,2]
[358245207,1744876046123,-100.48853287,0.00032303,2]
[358245208,1744876046167,-17.60578032,0.00033,5]
[358245209,1744876046220,-160.4,0.000335,31]
[358245210,1744876046263,-21.08985581,0.00034548,10]
[358245211,1744876052109,-283.94,0.00032877,30]